Workbook

Sheet Zielpolice
A2: Sparen - aber Zielgerecht!
A3: Geldanlage für Sie oder Ihr Kind! Führerschein, erstes Auto, Ausbildung, Studium oder Weltreise… je älter man wird, desto größer werden auch die Wünsche. Wer frühzeitig mit dem Sparen beginnt, kann auch schon mit kleineren Sparbeträgen große Ziele erreichen!
A5: Ziel | C5: Studium
A6: Benötigtes Kapital | C6: 50000
A7: Spardauer | C7: 15
A9: Beitrag | D9: =Eingabe!B5 -> 183.8979667
A10: Einmalanlage zu Beginn | D10: 0
A12: Rendite nach Kosten | D12: 0.05
A13: (Abzug bei Fondspolice z. B. 1% p.a.)
A15: ="Um eine sinnvolle Renditevorgabe zu ermöglichen, wurden für die gewünschte Laufzeit von "&C7&" Jahren, sämtliche mögliche Verläufe eines monatlichen DAX® - Sparplans (30.10.1959 bis 30.12.2019) mit 5jähriger Ablaufphase (langsame Umschichtung in eine sichere Anlage mit 1% Zins p.a.) ausgewertet." -> Um eine sinnvolle Renditevorgabe zu ermöglichen, wurden für die gewünschte Laufzeit von 15 Jahren, sämtliche mögliche Verläufe eines monatlichen DAX® - Sparplans (30.10.1959 bis 30.12.2019) mit 5jähriger Ablaufphase (langsame Umschichtung in eine sichere Anlage mit 1% Zins p.a.) ausgewertet.
A16: ="Ergebnisse der Berechnung von "&VLOOKUP(C7,Hilfe!A1:E59,5,FALSE)&" möglichen Sparplan-Verläufen: " -> Ergebnisse der Berechnung von 542 möglichen Sparplan-Verläufen:
B17: Schlechtester Verlauf: | D17: =VLOOKUP(C7,Hilfe!A3:E59,2,FALSE) -> 0.009028353661
B18: Mittelwert aller Verläufe: | D18: =VLOOKUP(C7,Hilfe!A1:E59,3,FALSE) -> 0.05843574069
B19: Bester Verlauf: | D19: =VLOOKUP(C7,Hilfe!A1:E59,4,FALSE) -> 0.1164145885
A25: Mit der Wunschpolice ist Geldanlage kinderleicht. Zielorientiert und renditestark … so funktioniert sparen. Unsere hochflexiblen Fondspolicen (CleVesto Allcase / CleVesto Favorites) bieten verschiedenste Möglichkeiten mit langfristigen Renditeerwartungen von ca. 3% bis 6% pro Jahr. Um die mögliche Rendite nicht stark zu reduzieren, verzichten wir auf teure, unflexible Garantien der einbezahlten Beiträge.
A26: Helvetia schweizerische Lebensversicherungs-AG • Weißadlergasse 2 • 60311 Frankfurt a.M. • T +49 (0)69 1332-575 Aufsichtsratsvorsitzender: Dr. Markus Gemperle • Vorstand: Dipl.-Kfm. Volker Steck (Vors.), Dipl.-Kfm. Burkhard Gierse, Alexander Schorn Landesbank Hessen-Thüringen Girozentrale • Kto. 15425002 • BLZ 500 500 00 • IBAN DE45 5005 0000 0015 4250 02 • BIC HELADEFFXXX Registergericht Frankfurt a.M. HRB 28138 • USt-IdNr. DE 811311232
A27: Quelle: Eigene Berechnungen auf Basis Ihrer Angaben und der gesetzlichen Daten.
A28: Für die Richtigkeit der Angaben kann keine Gewähr übernommen werden, denn Programm- und Berechnungsfehler sind trotz sorgfältigstem Vorgehen nicht ausgeschlossen.

Sheet Eingabe (hidden)
A1: Laufzeit | B1: =Zielpolice!C7 -> 15 | D1: Jahre | E1: Beitrag | F1: Gewinn | G1: Gewinn kumuliert | H1: ="Gesamtkapital ("&B2*100&"%)" -> Gesamtkapital (5%) | I1: Beitrag | J1: ="Schlechter Verlauf ("&B3*100&"%)" -> Schlechter Verlauf (-2,5%) | K1: ="Guter Verlauf ("&B4*100&"%)" -> Guter Verlauf (10%) | L1: Wunschkapital
A2: Rendite | B2: =Zielpolice!D12 -> 0.05 | D2: 0 | E2: =B6 -> 0 | F2: 0 | G2: 0 | H2: =E2+F2 -> 0 | I2: =E2 -> 0 | J2: =I2 -> 0 | K2: =E2 -> 0 | L2: =IF(D2=$B$1,H2,#N/A) -> 
A3: Schlechte Rendite | B3: =B2*-1*0.5 -> -0.025 | D3: 1 | E3: =B5*12+B6 -> 2206.7756 | F3: =E3*$B$2 -> 110.33878 | G3: =F3 -> 110.33878 | H3: =E3+F3 -> 2317.11438 | I3: =E3 -> 2206.7756 | J3: =E3*(1+$B$3) -> 2151.60621 | K3: =E3*(1+$B$4) -> 2427.45316 | L3: =IF(D3=$B$1,H3,#N/A) -> 
A4: Gute Rendite | B4: =MIN(10%,B2*2) -> 0.1 | D4: 2 | E4: =IF(D4>0,$B$5*12,0) -> 2206.7756 | F4: =(H3+E4)*$B$2 -> 226.194499 | G4: =F4+G3 -> 336.5332791 | H4: =H3+E4+F4 -> 4750.08448 | I4: =E4+I3 -> 4413.551201 | J4: =(E4+J3)*(1+$B$3) -> 4249.422266 | K4: =(E4+K3)*(1+$B$4) -> 5097.651637
A5: Beitrag | B5: 183.8979667 | D5: 3 | E5: 2206.7756 | F5: =(H4+E5)*$B$2 -> 347.843004 | G5: =F5+G4 -> 684.3762831 | H5: =H4+E5+F5 -> 7304.703084 | I5: =E5+I4 -> 6620.326801 | J5: =(E5+J4)*(1+$B$3) -> 6294.792919 | K5: =(E5+K4)*(1+$B$4) -> 8034.869961
A6: Einmalanlage zu Beginn | B6: =Zielpolice!D10 -> 0 | D6: 4 | E6: 2206.7756 | F6: =(H5+E6)*$B$2 -> 475.5739342 | G6: =F6+G5 -> 1159.950217 | H6: =H5+E6+F6 -> 9987.052619 | I6: =E6+I5 -> 8827.102402 | J6: 8289.029307 | K6: 11265.81012
D7: 5 | E7: 2206.7756 | F7: 609.691411 | G7: 1769.641628 | H7: 12803.51963 | I7: 11033.878 | J7: 10233.40978 | K7: 14819.84429
A8: Ziel | B8: =Zielpolice!C6 -> 50000 | D8: 6 | E8: 2206.7756 | F8: 750.5147615 | G8: 2520.15639 | H8: 15760.80999 | I8: 13240.6536 | J8: 12129.18075 | K8: 18729.28188
A9: Gesamtguthaben | B9: =VLOOKUP(B1,D:I,5) -> 50000 | D9: 7 | E9: 2206.7756 | F9: 898.3792796 | G9: 3418.535669 | H9: 18865.96487 | I9: 15447.4292 | J9: 13977.55744 | K9: 23029.66323
D10: 8 | E10: 2206.7756 | F10: 1053.637024 | G10: 4472.172693 | H10: 22126.3775 | I10: 17654.2048 | J10: 15779.72472 | K10: 27760.08271
D11: 9 | E11: 2206.7756 | F11: 1216.657655 | G11: 5688.830348 | H11: 25549.81075 | I11: 19860.9804 | J11: 17536.83781 | K11: 32963.54414
A12: Beitrag | B12: =VLOOKUP(B1,D:I,6) -> 33101.63401 | D12: 10 | E12: 2206.7756 | F12: 1387.829318 | G12: 7076.659666 | H12: 29144.41567 | I12: 22067.756 | J12: 19250.02307 | K12: 38687.35172
A13: Wertzuwachs | B13: =VLOOKUP(B1,D:I,4) -> 16898.36599 | D13: 11 | E13: 2206.7756 | F13: 1567.559564 | G13: 8644.219229 | H13: 32918.75083 | I13: 24274.5316 | J13: 20920.37871 | K13: 44983.54005
D14: 12 | E14: 2206.7756 | F14: 1756.276322 | G14: 10400.49555 | H14: 36881.80276 | I14: 26481.30721 | J14: 22548.97545 | K14: 51909.34722
D15: 13 | E15: 2206.7756 | F15: 1954.428918 | G15: 12354.92447 | H15: 41043.00727 | I15: 28688.08281 | J15: 24136.85727 | K15: 59527.7351
D16: 14 | E16: 2206.7756 | F16: 2162.489144 | G16: 14517.41361 | H16: 45412.27202 | I16: 30894.85841 | J16: 25685.04205 | K16: 67907.96177
D17: 15 | E17: 2206.7756 | F17: 2380.952381 | G17: 16898.36599 | H17: 50000 | I17: 33101.63401 | J17: 27194.52221 | K17: 77126.2111 | L17: 50000
D18: 16 | E18: 2206.7756 | F18: 2610.33878 | G18: 19508.70477 | H18: 54817.11438 | I18: 35308.40961 | J18: 28666.26537 | K18: 87266.28538
A19: Minusprozent | D19: 17 | E19: 2206.7756 | F19: 2851.194499 | G19: 22359.89927 | H19: 59875.08448 | I19: 37515.18521 | J19: 30101.21494 | K19: 98420.36707
A20: Ziel als Punkt einzeichnen | D20: 18 | E20: 2206.7756 | F20: 3104.093004 | G20: 25463.99228 | H20: 65185.95308 | I20: 39721.96081 | J20: 31500.29078 | K20: 110689.8569
A21: Hilfespalte weg | D21: 19 | E21: 2206.7756 | F21: 3369.636434 | G21: 28833.62871 | H21: 70762.36512 | I21: 41928.73641 | J21: 32864.38972 | K21: 124186.2958
A22: Grafiken in den Text | D22: 20 | E22: 2206.7756 | F22: 3648.457036 | G22: 32482.08575 | H22: 76617.59776 | I22: 44135.51201 | J22: 34194.38619 | K22: 139032.3785
A23: Ziele vorgeben (wie Fidelity) | D23: 21 | E23: 2206.7756 | F23: =(H22+E23)*$B$2 -> 3941.218668 | G23: =F23+G22 -> 36423.30441 | H23: =H22+E23+F23 -> 82765.59202 | I23: =E23+I22 -> 46342.28761 | J23: 35491.13274 | K23: 155363.0696
A24: Dax-Vergangenheit als Vorbelegung | D24: 22 | E24: 2206.7756 | F24: 4248.618381 | G24: 40671.9228 | H24: 89220.98601 | I24: 48549.06321 | J24: 36755.46064 | K24: 173326.8297
A25: Zieleingabe | D25: 23 | E25: 2206.7756 | F25: 4571.38808 | G25: 45243.31088 | H25: 95999.14969 | I25: 50755.83881 | J25: 37988.18033 | K25: 193086.9658
D26: 24 | E26: 2206.7756 | F26: 4910.296264 | G26: 50153.60714 | H26: 103116.2216 | I26: 52962.61441 | J26: 39190.08203 | K26: 214823.1155
D27: 25 | E27: 2206.7756 | F27: 5266.149858 | G27: 55419.757 | H27: 110589.147 | I27: 55169.39001 | J27: 40361.93619 | K27: 238732.8802
D28: 26 | E28: 2206.7756 | F28: 5639.79613 | G28: 61059.55313 | H28: 118435.7187 | I28: 57376.16561 | J28: 41504.494 | K28: 265033.6214
D29: 27 | E29: 2206.7756 | F29: 6032.124717 | G29: 67091.67785 | H29: 126674.6191 | I29: 59582.94121 | J29: 42618.48786 | K29: 293964.4367
D30: 28 | E30: 2206.7756 | F30: 6444.069733 | G30: 73535.74758 | H30: 135325.4644 | I30: 61789.71681 | J30: 43704.63187 | K30: 325788.3336
D31: 29 | E31: 2206.7756 | F31: 6876.612 | G31: 80412.35958 | H31: 144408.852 | I31: 63996.49241 | J31: 44763.62229 | K31: 360794.6201
D32: 30 | E32: 2206.7756 | F32: 7330.78138 | G32: 87743.14096 | H32: 153946.409 | I32: 66203.26801 | J32: 45796.13794 | K32: 399301.5353
D33: 31 | E33: 2206.7756 | F33: 7807.659229 | G33: 95550.80019 | H33: 163960.8438 | I33: 68410.04361 | J33: 46802.8407 | K33: 441659.1419
D34: 32 | E34: 2206.7756 | F34: 8308.38097 | G34: 103859.1812 | H34: 174476.0004 | I34: 70616.81921 | J34: =(E34+J33)*(1+$B$3) -> 47784.37589 | K34: =(E34+K33)*(1+$B$4) -> 488252.5093
D35: 33 | E35: 2206.7756 | F35: 8834.138799 | G35: 112693.32 | H35: 185516.9148 | I35: 72823.59481 | J35: 48741.37271 | K35: 539505.2134
D36: 34 | E36: =IF(D36>0,$B$5*12,0) -> 2206.7756 | F36: 9386.184518 | G36: 122079.5045 | H36: 197109.8749 | I36: 75030.37041 | J36: 49674.4446 | K36: 595883.1879
D37: 35 | E37: 2206.7756 | F37: 9965.832524 | G37: 132045.337 | H37: 209282.483 | I37: 77237.14602 | J37: 50584.1897 | K37: 657898.9598
D38: 36 | E38: 2206.7756 | F38: 10574.46293 | G38: 142619.7999 | H38: 222063.7215 | I38: 79443.92162 | J38: 51471.19116 | K38: 726116.309
D39: 37 | E39: 2206.7756 | F39: 11213.52486 | G39: 153833.3248 | H39: 235484.022 | I39: 81650.69722 | J39: 52336.0176 | K39: 801155.393
D40: 38 | E40: 2206.7756 | F40: 11884.53988 | G40: 165717.8647 | H40: 249575.3375 | I40: 83857.47282 | J40: 53179.22337 | K40: 883698.3855
D41: 39 | E41: 2206.7756 | F41: 12589.10565 | G41: 178306.9703 | H41: 264371.2187 | I41: 86064.24842 | J41: 54001.34899 | K41: 974495.6772
D42: 40 | E42: 2206.7756 | F42: 13328.89972 | G42: 191635.87 | H42: 279906.8941 | I42: 88271.02402 | J42: 54802.92148 | K42: 1074372.698
D43: 41 | E43: 2206.7756 | F43: 14105.68348 | G43: 205741.5535 | H43: 296219.3531 | I43: 90477.79962 | J43: 55584.45465 | K43: 1184237.421
D44: 42 | E44: 2206.7756 | F44: 14921.30644 | G44: 220662.86 | H44: 313347.4352 | I44: 92684.57522 | J44: 56346.4495 | K44: 1305088.616
D45: 43 | E45: 2206.7756 | F45: 15777.71054 | G45: 236440.5705 | H45: 331331.9213 | I45: 94891.35082 | J45: 57089.39447 | K45: 1438024.931
D46: 44 | E46: 2206.7756 | F46: 16676.93485 | G46: 253117.5053 | H46: 350215.6318 | I46: 97098.12642 | J46: 57813.76582 | K46: 1584254.877
D47: 45 | E47: 2206.7756 | F47: 17621.12037 | G47: 270738.6257 | H47: 370043.5277 | I47: 99304.90202 | J47: 58520.02788 | K47: 1745107.818
D48: 46 | E48: 2206.7756 | F48: 18612.51517 | G48: 289351.1409 | H48: 390862.8185 | I48: 101511.6776 | J48: 59208.6334 | K48: 1922046.053
D49: 47 | E49: 2206.7756 | F49: 19653.4797 | G49: 309004.6206 | H49: 412723.0738 | I49: 103718.4532 | J49: 59880.02377 | K49: 2116678.112
D50: 48 | E50: 2206.7756 | F50: 20746.49247 | G50: 329751.113 | H50: 435676.3419 | I50: 105925.2288 | J50: 60534.62939 | K50: 2330773.376
D51: 49 | E51: 2206.7756 | F51: 21894.15587 | G51: 351645.2689 | H51: 459777.2733 | I51: 108132.0044 | J51: 61172.86986 | K51: 2566278.167
D52: 50 | E52: 2206.7756 | F52: 23099.20245 | G52: 374744.4714 | H52: 485083.2514 | I52: 110338.78 | J52: 61795.15433 | K52: 2825333.437
D53: 51 | E53: 2206.7756 | F53: 24364.50135 | G53: 399108.9727 | H53: 511654.5283 | I53: 112545.5556 | J53: 62401.88168 | K53: 3110294.234
D54: 52 | E54: 2206.7756 | F54: =(H53+E54)*$B$2 -> 25693.0652 | G54: =F54+G53 -> 424802.0379 | H54: =H53+E54+F54 -> 539554.3691 | I54: =E54+I53 -> 114752.3312 | J54: 62993.44085 | K54: 3423751.11
D55: 53 | E55: 2206.7756 | F55: 27088.05724 | G55: 451890.0952 | H55: 568849.202 | I55: 116959.1068 | J55: 63570.21104 | K55: 3768553.674
D56: 54 | E56: 2206.7756 | F56: 28552.79888 | G56: 480442.894 | H56: 599608.7765 | I56: 119165.8824 | J56: 64132.56197 | K56: 4147836.495
D57: 55 | E57: 2206.7756 | F57: 30090.7776 | G57: 510533.6716 | H57: 631906.3297 | I57: 121372.658 | J57: 64680.85413 | K57: 4565047.597
D58: 56 | E58: 2206.7756 | F58: 31705.65526 | G58: 542239.3269 | H58: 665818.7605 | I58: 123579.4336 | J58: 65215.43899 | K58: 5023979.81
D59: 57 | E59: 2206.7756 | F59: 33401.27681 | G59: 575640.6037 | H59: 701426.8129 | I59: 125786.2092 | J59: 65736.65923 | K59: 5528805.245
D60: 58 | E60: 2206.7756 | F60: 35181.67943 | G60: 610822.2831 | H60: 738815.268 | I60: 127992.9848 | J60: 66244.84895 | K60: 6084113.222
D61: 59 | E61: 2206.7756 | F61: 37051.10218 | G61: 647873.3853 | H61: 778073.1457 | I61: 130199.7604 | J61: 66740.33394 | K61: 6694951.998
D62: 60 | E62: 2206.7756 | F62: 39013.99607 | G62: 686887.3814 | H62: 819293.9174 | I62: 132406.536 | J62: 67223.4318 | K62: 7366874.651
D63: 61 | E63: 2206.7756 | F63: =(H62+E63)*$B$2 -> 41075.03465 | G63: =F63+G62 -> 727962.416 | H63: =H62+E63+F63 -> 862575.7277 | I63: =E63+I62 -> 134613.3116 | J63: 67694.45222 | K63: 8105989.569
D64: 62 | E64: 2206.7756 | F64: 43239.12516 | G64: 771201.5412 | H64: 908021.6284 | I64: 136820.0872 | J64: 68153.69712 | K64: 8919015.979
D65: 63 | E65: 2206.7756 | F65: 45511.4202 | G65: 816712.9614 | H65: 955739.8242 | I65: 139026.8628 | J65: 68601.46091 | K65: 9813345.03
D66: 64 | E66: 2206.7756 | F66: 47897.32999 | G66: 864610.2914 | H66: 1005843.93 | I66: 141233.6384 | J66: 69038.03059 | K66: 10797106.99
D67: 65 | E67: 2206.7756 | F67: 50402.53527 | G67: 915012.8267 | H67: 1058453.241 | I67: 143440.414 | J67: 69463.68604 | K67: 11879245.14 | L67: =IF(D67=$B$1,H67,#N/A) -> 
D68: 66 | E68: =IF(D68>0,$B$5*12,0) -> 2206.7756 | F68: 53033.00081 | G68: 968045.8275 | H68: 1113693.017 | I68: 145647.1896 | J68: 69878.7001 | K68: 13069597.1
D69: 67 | E69: 2206.7756 | F69: 55794.98963 | G69: 1023840.817 | H69: 1171694.782 | I69: 147853.9652 | J69: 70283.33881 | K69: 14378984.27
D70: 68 | E70: 2206.7756 | F70: 58695.0779 | G70: 1082535.895 | H70: 1232596.636 | I70: 150060.7408 | J70: 70677.86155 | K70: 15819310.15
D71: 69 | E71: 2206.7756 | F71: 61740.17057 | G71: 1144276.066 | H71: 1296543.582 | I71: 152267.5164 | J71: 71062.52122 | K71: 17403668.62
D72: 70 | E72: 2206.7756 | F72: 64937.51788 | G72: 1209213.583 | H72: 1363687.875 | I72: 154474.292 | J72: 71437.5644 | K72: 19146462.93
D73: 71 | E73: 2206.7756 | F73: 68294.73255 | G73: 1277508.316 | H73: 1434189.384 | I73: 156681.0676 | J73: 71803.2315 | K73: 21063536.68
D74: 72 | E74: 2206.7756 | F74: 71819.80796 | G74: 1349328.124 | H74: 1508215.967 | I74: 158887.8432 | J74: 72159.75692 | K74: 23172317.8
D75: 73 | E75: 2206.7756 | F75: 75521.13714 | G75: 1424849.261 | H75: 1585943.88 | I75: 161094.6188 | J75: 72507.36921 | K75: 25491977.03
D76: 74 | E76: 2206.7756 | F76: 79407.53278 | G76: 1504256.794 | H76: 1667558.188 | I76: 163301.3944 | J76: 72846.29119 | K76: 28043602.19
D77: 75 | E77: 2206.7756 | F77: 83488.2482 | G77: 1587745.042 | H77: 1753253.212 | I77: 165508.17 | J77: 73176.74012 | K77: 30850389.86
D78: 76 | E78: 2206.7756 | F78: 87772.99939 | G78: 1675518.041 | H78: 1843232.987 | I78: 167714.9456 | J78: 73498.92783 | K78: 33937856.3

Sheet Zielvertrag
A2: Mein persönlicher Zielerreichungs-Vertrag
A4: ="Mein Ziel: "&Zielpolice!C5&"" -> Mein Ziel: Studium
A6: ="Dafür möchte ich in "&Zielpolice!C7&" Jahren (bis "&YEAR(TODAY())+Zielpolice!C7&")" -> Dafür möchte ich in 15 Jahren (bis 2037)
A7: ="ein Kapital von "&FIXED(Zielpolice!C6,0)&" Euro ansparen." -> ein Kapital von 50.000 Euro ansparen.
A9: Dafür spare ich entweder:
A11: ="[ ] mit 0% Zins nach Kosten "&ROUNDUP(Zielpolice!C6/Zielpolice!C7/12,0)&" Euro monatlich ohne Risiko an." -> [ ] mit 0% Zins nach Kosten 278 Euro monatlich ohne Risiko an.
A13: oder
A15: ="[ ] mit "&Zielpolice!D12*100&"% Zins nach Kosten "&ROUNDUP(Zielpolice!D9,0)&" Euro monatlich an. Dafür nehme ich" -> [ ] mit 5% Zins nach Kosten 184 Euro monatlich an. Dafür nehme ich
A16: ="Schwankungen des Guthabens von ca. "&ROUNDUP(Zielpolice!D12*100*6,-1)&"% in Kauf." -> Schwankungen des Guthabens von ca. 30% in Kauf.
A18: Um mein Ziel zu erreichen, werde ich mein Guthaben erst abrufen wenn:
A20: Ich das Ziel erreicht habe (ggf. auch schon vorzeitig).
A22: oder
A24: Ich das Ziel aufgebe.
A26: Entnahmen sind im Notfall möglich, sollten aber nur in guten Börsenphasen erfolgen.
B37: Ort/ Datum | E37: Unterschrift

Sheet Hilfe (hidden)
B1: Min | C1: Mittelwert | D1: Max | E1: Anzahl
A3: 5 | B3: -0.3323027533 | C3: 0.06256114709 | D3: 0.3046723606 | E3: 662
A4: 6 | B4: -0.01215545718 | C4: 0.0632892065 | D4: 0.158986534 | E4: 650
A5: 7 | B5: -0.007749114977 | C5: 0.06015196906 | D5: 0.1476341994 | E5: 638
A6: 8 | B6: 0.0008380407025 | C6: 0.05887570158 | D6: 0.145907044 | E6: 626
A7: 9 | B7: 0.00955865374 | C7: 0.0580768636 | D7: 0.1407400763 | E7: 614
A8: 10 | B8: 0.01026077326 | C8: 0.05752875781 | D8: 0.1357152422 | E8: 602
A9: 10 | B9: 0.01026077326 | C9: 0.05752875781 | D9: 0.1357152422 | E9: 602
A10: 11 | B10: 0.009004532655 | C10: 0.0572124378 | D10: 0.1308958472 | E10: 590
A11: 12 | B11: 0.01066156645 | C11: 0.05718569845 | D11: 0.124648753 | E11: 578
A12: 13 | B12: 0.01141734891 | C12: 0.05739831485 | D12: 0.1230823515 | E12: 566
A13: 14 | B13: 0.01012269743 | C13: 0.05777250023 | D13: 0.1209840128 | E13: 554
A14: 15 | B14: 0.009028353661 | C14: 0.05843574069 | D14: 0.1164145885 | E14: 542
A15: 16 | B15: 0.01030249751 | C15: 0.05928689419 | D15: 0.1123285792 | E15: 530
A16: 17 | B16: 0.0118188156 | C16: 0.06009212399 | D16: 0.1125809867 | E16: 518
A17: 18 | B17: 0.01103349886 | C17: 0.06090079021 | D17: 0.1125549532 | E17: 506
A18: 19 | B18: 0.01128200364 | C18: 0.06182375396 | D18: 0.1146716243 | E18: 494
A19: 20 | B19: 0.01171671396 | C19: 0.06281594204 | D19: 0.1154900348 | E19: 482
A20: 21 | B20: 0.01196419647 | C20: 0.06389896104 | D20: 0.1157265055 | E20: 470
A21: 22 | B21: 0.01109280733 | C21: 0.06512643224 | D21: 0.1148931134 | E21: 458
A22: 23 | B22: 0.01064474798 | C22: 0.06646597932 | D22: 0.112934786 | E22: 446
A23: 24 | B23: 0.01404296289 | C23: 0.06782711638 | D23: 0.1108562459 | E23: 434
A24: 25 | B24: 0.01863220402 | C24: 0.0690796245 | D24: 0.1089021746 | E24: 422
A25: 26 | B25: 0.0266911873 | C25: 0.07019225884 | D25: 0.1067955856 | E25: 410
A26: 27 | B26: 0.03926315805 | C26: 0.07099605552 | D26: 0.1050981208 | E26: 398
A27: 28 | B27: 0.04709812639 | C27: 0.07150760041 | D27: 0.1036554417 | E27: 386
A28: 29 | B28: 0.04834848027 | C28: 0.07189833956 | D28: 0.1019561101 | E28: 374
A29: 30 | B29: 0.05156658958 | C29: 0.07224228135 | D29: 0.09958851868 | E29: 362
A30: 31 | B30: 0.05441426805 | C30: 0.07248875309 | D30: 0.09756280072 | E30: 350
A31: 32 | B31: 0.05315271503 | C31: 0.07272628495 | D31: 0.09558940077 | E31: 338
A32: 33 | B32: 0.05233088136 | C32: 0.07301129599 | D32: 0.09326252846 | E32: 326
A33: 34 | B33: 0.05349495527 | C33: 0.07335329511 | D33: 0.09109330903 | E33: 314
A34: 35 | B34: 0.05482742869 | C34: 0.07366742342 | D34: 0.08948433068 | E34: 302
A35: 36 | B35: 0.05427398977 | C35: 0.0739742112 | D35: 0.08831392286 | E35: 290
A36: 37 | B36: 0.05594827742 | C36: 0.07425594435 | D36: 0.08670591444 | E36: 278
A37: 38 | B37: 0.06049676429 | C37: 0.07438959853 | D37: 0.08500098995 | E37: 266
A38: 39 | B38: 0.06676598991 | C38: 0.07421831782 | D38: 0.08343976304 | E38: 254
A39: 40 | B39: 0.0674803285 | C39: 0.07375592969 | D39: 0.08221025786 | E39: 242
A40: 41 | B40: 0.06680188107 | C40: 0.07300776288 | D40: 0.08061831882 | E40: 230
A41: 42 | B41: 0.06586122816 | C41: 0.07199645146 | D41: 0.07895309691 | E41: 218
A42: 43 | B42: 0.06492318942 | C42: 0.07089312302 | D42: 0.07691167118 | E42: 206
A43: 44 | B43: 0.0642564324 | C43: 0.06989882182 | D43: 0.07523788886 | E43: 194
A44: 45 | B44: 0.06338421514 | C44: 0.06909666903 | D44: 0.07517566157 | E44: 182
A45: 46 | B45: 0.06229670108 | C45: 0.06851549619 | D45: 0.07461991933 | E45: 170
A46: 47 | B46: 0.06161038296 | C46: 0.06820000494 | D46: 0.07395353915 | E46: 158
A47: 48 | B47: 0.06319017543 | C47: 0.06795113997 | D47: 0.07332265943 | E47: 146
A48: 49 | B48: 0.06369050038 | C48: 0.06751039944 | D48: 0.07254075411 | E48: 134
A49: 50 | B49: 0.06301522952 | C49: 0.06703734773 | D49: 0.07170530027 | E49: 122
A50: 51 | B50: 0.06255564144 | C50: 0.0666231596 | D50: 0.07086498883 | E50: 110
A51: 52 | B51: 0.06172380953 | C51: 0.0662722985 | D51: 0.07051994919 | E51: 98
A52: 53 | B52: 0.06091987542 | C52: 0.06611878529 | D52: 0.07001894983 | E52: 86
A53: 54 | B53: 0.06056254867 | C53: 0.06625345841 | D53: 0.06931460218 | E53: 74
A54: 55 | B54: 0.0624224638 | C54: 0.06640292333 | D54: 0.0686402875 | E54: 62
A55: 56 | B55: 0.06380301591 | C55: 0.06641467195 | D55: 0.06800978917 | E55: 50
A56: 57 | B56: 0.06415946419 | C56: 0.0663914849 | D56: 0.06737172331 | E56: 38
A57: 58 | B57: 0.06530764056 | C57: 0.06627277153 | D57: 0.06677099133 | E57: 26
A58: 59 | B58: 0.06571007077 | C58: 0.06579126202 | D58: 0.06597307934 | E58: 14
A59: 60 | B59: 0.0652261104 | C59: 0.0652511253 | D59: 0.0652761402 | E59: 2
